[Event "Charlotte CC Fall GM-ALTO 2024"]
[Site "Charlotte"]
[Date "2024.11.23"]
[Round "2.4"]
[White "Gedajlovic, Max"]
[Black "Williams, Justus"]
[Result "1/2-1/2"]
[ECO "E45"]
[WhiteElo "2377"]
[BlackElo "2355"]
[Annotator "ChessBase"]
[PlyCount "50"]
[EventDate "2024.11.22"]
[EventType "tourn"]
[EventCountry "USA"]
[SourceTitle "playchess.com"]
[Source "ChessBase"]
[SourceQuality "1"]
[TimeControl "5400+30"]

1. d4 {[%emt 0:00:38]} Nf6 {[%emt 0:00:10]} 2. c4 {[%emt 0:00:11]} e6 {[%emt 0:00:17]} 3. Nc3 {[%emt 0:00:30]} Bb4 {[%emt 0:00:10]} 4. e3 {[%emt 0:00:10]} b6 {[%emt 0:00:50]} 5. Nge2 {[%emt 0:00:31]} Ba6 {[%emt 0:02:00]} 6. a3 {[%emt 0:00:39]} Bxc3+ {[%emt 0:02:13]} 7. Nxc3 {[%emt 0:00:13]} d5 {[%emt 0:00:06]} 8. b3 {[%emt 0:06:12]} Nc6 {[%emt 0:04:12]} 9. cxd5 {[%emt 0:15:13]} Bxf1 {[%emt 0:00:15]} 10. Kxf1 {[%emt 0:00:07]} exd5 {[%emt 0:01:00]} 11. g3 {[%emt 0:00:22]} Na5 {[%emt 0:01:54]} 12. Bd2 {[%emt 0:01:03]} O-O {[%emt 0:02:29]} 13. Kg2 {[%emt 0:00:18]} Qd7 {[%emt 0:03:57]} 14. Rc1 {[%emt 0:00:52]} Rac8 {[%emt 0:02:05]} 15. Ne2 {[%emt 0:05:21]} Nb7 {[%emt 0:00:19]} 16. Nf4 {[%emt 0:03:35]} Rfd8 {[%emt 0:02:35]} 17. Bc3 {[%emt 0:07:32]} Ne4 {[%emt 0:10:50]} 18. Qe2 {[%emt 0:04:32]} Qe7 {[%emt 0:13:21]} 19. Bb2 {[%emt 0:01:18]} c6 {[%emt 0:02:08]} 20. h4 {[%emt 0:03:18]} Na5 {[%emt 0:01:03]} 21. Qd1 {[%emt 0:06:36]} Nd6 {[%emt 0:10:12]} 22. Bc3 {[%emt 0:02:31]} Qe4+ {[%emt 0:04:38]} 23. Kh2 {[%emt 0:01:19]} Nab7 {[%emt 0:02:21]} 24. Re1 {[%emt 0:02:59]} Qe7 {[%emt 0:03:12]} 25. Kg2 {[%emt 0:03:33]} Ne4 {[%emt 0:02:26]} 1/2-1/2

[Event "Charlotte CC Fall GM-ALTO 2024"]
[Site "Charlotte"]
[Date "2024.11.23"]
[Round "2.5"]
[White "Wang, Tianqi"]
[Black "Griffith, Kyron"]
[Result "0-1"]
[ECO "A01"]
[WhiteElo "2323"]
[BlackElo "2407"]
[Annotator "RC"]
[PlyCount "165"]
[EventDate "2024.11.22"]
[EventType "tourn"]
[EventCountry "USA"]
[SourceTitle "playchess.com"]
[Source "ChessBase"]
[SourceQuality "1"]
[TimeControl "5400+30"]

1. b3 {[%emt 0:00:04]} e5 {[%emt 0:03:27]} 2. Bb2 {[%emt 0:00:07]} Nc6 {[%emt 0:00:04]} 3. e3 {[%emt 0:00:03]} d5 {[%emt 0:00:19]} 4. Bb5 {[%emt 0:00:35]} Nge7 {[%emt 0:00:14]} 5. Bxe5 {[%emt 0:00:16]} a6 {[%emt 0:00:07]} 6. Bxc6+ {[%emt 0:00:04]} Nxc6 {[%emt 0:00:06]} 7. Bg3 {[%emt 0:00:03]} h5 {[%emt 0:00:33]} 8. h4 {[%emt 0:00:03]} d4 {[%emt 0:00:41]} 9. Ne2 {[%emt 0:11:30]} Bd6 {[%emt 0:01:16]} 10. Bxd6 {[%emt 0:00:39]} Qxd6 {[%emt 0:00:10]} 11. exd4 {[%emt 0:00:28]} Nxd4 {[%emt 0:01:36]} 12. Nxd4 {[%emt 0:19:48]} Qxd4 {[%emt 0:00:07]} 13. Nc3 {[%emt 0:00:07]} O-O {[%emt 0:04:28]} 14. Ne2 {[%emt 0:13:32]} Re8 {[%emt 0:00:44]} 15. Kf1 {[%emt 0:10:16]} Qd6 {[%emt 0:19:09]} 16. d4 {[%emt 0:00:32]} c5 {[%emt 0:03:52]} 17. Qd2 {[%emt 0:01:25]} Bf5 {[%emt 0:02:58]} 18. Rd1 {[%emt 0:00:44]} Rad8 {[%emt 0:01:32]} 19. f3 {[%emt 0:06:38]} cxd4 {[%emt 0:09:47]} 20. Nxd4 {[%emt 0:00:16]} Qc5 {[%emt 0:00:16]} 21. Kf2 {[%emt 0:02:58]} Bg6 {[%emt 0:00:58]} 22. c3 {[%emt 0:00:27]} b5 {[%emt 0:02:03]} 23. b4 {[%emt 0:00:40]} Qc4 {[%emt 0:02:15]} 24. Rhe1 {[%emt 0:00:09]} Rc8 {[%emt 0:07:02]} 25. Rxe8+ {[%emt 0:00:20]} Rxe8 {[%emt 0:00:05]} 26. a3 {[%emt 0:01:26]} Rc8 {[%emt 0:01:18]} 27. Rc1 {[%emt 0:00:21]} Qc7 {[%emt 0:02:42]} 28. g3 {[%emt 0:12:10]} Qd7 {[%emt 0:00:54]} 29. Kg2 {[%emt 0:00:18]} Qd5 {[%emt 0:03:53]} 30. Re1 {[%emt 0:00:19]} Qc4 {[%emt 0:01:37]} 31. Re3 {[%emt 0:00:20]} Kh7 {[%emt 0:00:14]} 32. Qe2 {[%emt 0:03:11]} Qd5 {[%emt 0:01:41]} 33. Kh2 {[%emt 0:02:08]} Kg8 {[%emt 0:05:59]} 34. Re8+ {[%emt 0:01:46]} Rxe8 {[%emt 0:00:05]} 35. Qxe8+ {[%emt 0:00:03]} Kh7 {[%emt 0:00:05]} 36. Qe2 {[%emt 0:00:03]} Bb1 {[%emt 0:02:42]} 37. Kg2 {[%emt 0:00:41]} Bg6 {[%emt 0:00:44]} 38. Qb2 {[%emt 0:01:59]} Bd3 {[%emt 0:00:35]} 39. Qb3 {[%emt 0:01:17]} Qd7 {[%emt 0:00:23]} 40. Qd1 {[%emt 0:00:15]} Bg6 {[%emt 0:00:31]} 41. Qa1 {[%emt 0:01:00]} Qc7 {[%emt 0:01:25]} 42. Ne2 {[%emt 0:01:03]} Qc4 {[%emt 0:00:21]} 43. Kf2 {[%emt 0:00:16]} Qb3 {[%emt 0:00:41]} 44. Nd4 {[%emt 0:00:53]} Qc4 {[%emt 0:00:15]} 45. Qb2 {[%emt 0:00:06]} Qc8 {[%emt 0:00:40]} 46. Kg2 {[%emt 0:00:16]} Qc4 {[%emt 0:00:39]} 47. Ne2 {[%emt 0:00:40]} Bf5 {[%emt 0:03:29]} 48. Nf4 {[%emt 0:00:30]} g6 {[%emt 0:02:03]} 49. Kf2 {[%emt 0:00:06]} Bc8 {[%emt 0:01:11]} 50. Qc2 {[%emt 0:02:10]} Bf5 {[%emt 0:00:12]} 51. Qb2 {[%emt 0:03:48]} Bc8 {[%emt 0:00:16]} 52. Qd2 {[%emt 0:00:38]} Bb7 {[%emt 0:01:06]} 53. Ne2 {[%emt 0:01:55]} Bd5 {[%emt 0:00:39]} 54. Nd4 {[%emt 0:00:33]} Bb7 {[%emt 0:00:50]} 55. Qc2 {[%emt 0:01:11]} Qc8 {[%emt 0:00:29]} 56. Qb3 {[%emt 0:00:28]} Qd7 {[%emt 0:00:12]} 57. Qa2 {[%emt 0:00:21]} Bd5 {[%emt 0:00:13]} 58. Qe2 {[%emt 0:00:17]} Qh3 {[%emt 0:00:27]} 59. Qe1 {[%emt 0:02:32]} Qh2+ {[%emt 0:02:12]} 60. Ke3 {[%emt 0:00:05]} Qb2 {[%emt 0:00:25]} 61. Kf4 {[%emt 0:00:39]} Qg2 {[%emt 0:04:35]} 62. Qe3 {[%emt 0:01:36]} Bc4 {[%emt 0:00:11]} 63. Nc6 {[%emt 0:01:23]} Qc2 {[%emt 0:01:24]} 64. Ke5 {[%emt 0:00:23]} Qg2 {[%emt 0:02:11]} 65. Qf4 {[%emt 0:01:01]} Qc2 {[%emt 0:00:46]} 66. Qe3 {[%emt 0:00:57]} Qg2 {[%emt 0:00:05]} 67. Kf4 {[%emt 0:00:10]} Qc2 {[%emt 0:00:05]} 68. Nd4 {[%emt 0:00:46]} Qg2 {[%emt 0:00:07]} 69. Qe1 {[%emt 0:00:35]} Qb2 {[%emt 0:00:46]} 70. Ke5 {[%emt 0:00:23]} Qxa3 {[%emt 0:00:27]} 71. Kf6 {[%emt 0:00:36]} a5 {[%emt 0:00:25]} 72. g4 {[%emt 0:00:27]} axb4 {[%emt 0:00:35]} 73. gxh5 {[%emt 0:00:32]} Qa6+ {[%emt 0:00:08]} 74. Kg5 {[%emt 0:00:03]} b3 {[%emt 0:01:10]} 75. Qb1 {[%emt 0:00:31]} Kg7 {[%emt 0:02:28]} 76. h6+ {[%emt 0:00:11]} Kh7 {[%emt 0:00:41]} 77. Nxb3 {[%emt 0:00:56]} f6+ {[%emt 0:00:11]} 78. Kf4 {[%emt 0:00:06]} Qd6+ {[%emt 0:00:05]} 79. Ke3 {[%emt 0:01:03]} Qe5+ {[%emt 0:01:17]} 80. Kf2 {[%emt 0:00:27]} Qh2+ {[%emt 0:00:10]} 81. Ke3 {[%emt 0:00:09]} Qe2+ {[%emt 0:00:08]} 82. Kf4 {[%emt 0:00:18]} Qe5+ {[%emt 0:00:08]} 83. Kg4 {[%emt 0:00:46]} 0-1

[Event "Charlotte CC Fall GM-ALTO 2024"]
[Site "Charlotte"]
[Date "2024.11.23"]
[Round "3.2"]
[White "Williams, Justus"]
[Black "Wang, Tianqi"]
[Result "1/2-1/2"]
[ECO "E06"]
[WhiteElo "2355"]
[BlackElo "2323"]
[Annotator "RC"]
[PlyCount "57"]
[EventDate "2024.11.22"]
[EventType "tourn"]
[EventCountry "USA"]
[SourceTitle "playchess.com"]
[Source "ChessBase"]
[SourceQuality "1"]
[TimeControl "5400+30"]

1. Nf3 {[%emt 0:05:11]} d5 {[%emt 0:00:02]} 2. c4 {[%emt 0:00:30]} e6 {[%emt 0:00:04]} 3. g3 {[%emt 0:00:07]} Nf6 {[%emt 0:00:05]} 4. Bg2 {[%emt 0:00:07]} Be7 {[%emt 0:00:09]} 5. O-O {[%emt 0:00:25]} O-O {[%emt 0:00:10]} 6. d4 {[%emt 0:00:42]} c6 {[%emt 0:01:46]} 7. Qc2 {[%emt 0:00:59]} b6 {[%emt 0:01:08]} 8. a4 {[%emt 0:05:10]} a5 {[%emt 0:00:24]} 9. Ne5 {[%emt 0:01:19]} Bb7 {[%emt 0:00:25]} 10. cxd5 {[%emt 0:13:08]} cxd5 {[%emt 0:12:23]} 11. Na3 {[%emt 0:01:06]} Nfd7 {[%emt 0:01:00]} 12. Nd3 {[%emt 0:05:35]} Nc6 {[%emt 0:00:20]} 13. Nb5 {[%emt 0:01:03]} Ba6 {[%emt 0:01:15]} 14. e3 {[%emt 0:00:54]} Bxb5 {[%emt 0:02:42]} 15. axb5 {[%emt 0:00:08]} Nb4 {[%emt 0:00:02]} 16. Nxb4 {[%emt 0:02:58]} Bxb4 {[%emt 0:00:10]} 17. Bd2 {[%emt 0:00:34]} Rc8 {[%emt 0:00:37]} 18. Qd3 {[%emt 0:00:17]} Bxd2 {[%emt 0:00:21]} 19. Qxd2 {[%emt 0:00:04]} Nf6 {[%emt 0:00:04]} 20. b4 {[%emt 0:02:03]} axb4 {[%emt 0:05:49]} 21. Qxb4 {[%emt 0:00:26]} Rc4 {[%emt 0:00:04]} 22. Qa3 {[%emt 0:00:17]} Qd7 {[%emt 0:00:42]} 23. Rfb1 {[%emt 0:04:19]} Rfc8 {[%emt 0:00:14]} 24. Bf1 {[%emt 0:00:58]} Rc3 {[%emt 0:01:10]} 25. Rb3 {[%emt 0:05:13]} R3c7 {[%emt 0:00:11]} 26. Qa6 {[%emt 0:02:28]} Qd6 {[%emt 0:00:10]} 27. Qa3 {[%emt 0:00:09]} Qd8 {[%emt 0:01:48]} 28. Qa6 {[%emt 0:02:38]} Qd6 {[%emt 0:06:43]} 29. Qa3 {[%emt 0:00:21]} 1/2-1/2

[Event "Charlotte CC Fall GM-ALTO 2024"]
[Site "Charlotte"]
[Date "2024.11.23"]
[Round "3.3"]
[White "Mitrabha, Guha"]
[Black "Gedajlovic, Max"]
[Result "1/2-1/2"]
[ECO "D36"]
[WhiteElo "2511"]
[BlackElo "2377"]
[Annotator "TA"]
[PlyCount "86"]
[EventDate "2024.11.22"]
[EventType "tourn"]
[EventCountry "USA"]
[SourceTitle "playchess.com"]
[Source "ChessBase"]
[SourceQuality "1"]
[TimeControl "5400+30"]

{[%evp 16,86,14,15,27,20,28,29,27,34,49,26,27,16,15,21,33,12,24,0,-6,-16,0,-31,-18,-74,-57,-70,-78,-92,-50,-122,-128,-127,-83,-77,-52,-90,-77,-87,-80,-101,-60,-55,-52,-70,-55,-42,-26,-31,-26,-69,-6,0,0,-104,11,-58,-58,-64,-20,-143,-155,-203,0,0,0,0,0,0,0,0,0]} 1. c4 {[%emt 0:10:11]} e6 {[%emt 0:00:12]} 2. Nc3 {[%emt 0:00:46]} d5 {[%emt 0:00:22]} 3. d4 {[%emt 0:00:22]} Nf6 {[%emt 0:00:37]} 4. cxd5 {[%emt 0:00:09]} exd5 {[%emt 0:00:15]} 5. Bg5 {[%emt 0:00:06]} c6 {[%emt 0:00:15]} 6. e3 {[%emt 0:00:29]} h6 {[%emt 0:00:15]} 7. Bh4 {[%emt 0:00:09]} Be7 {[%emt 0:00:12]} 8. Bd3 {[%emt 0:00:13]} O-O {[%emt 0:00:41]} 9. Qc2 {[%emt 0:00:07]} Ne8 {[%emt 0:00:33]} 10. Bg3 {[%emt 0:00:44]} Nd6 {[%emt 0:00:16]} 11. Nge2 {[%emt 0:00:22]} Re8 {[%emt 0:00:22] White has an edge.} 12. O-O {[%emt 0:00:21]} Bf8 {[%emt 0:00:12]} 13. Rae1 {[%emt 0:00:37]} a5 {[%emt 0:00:12]} 14. Nf4 {[%emt 0:00:46]} Na6 {[%emt 0:00:31]} 15. a3 {[%emt 0:00:06] Repels Nb4} Nc7 {[%emt 0:00:17]} 16. f3 {[%emt 0:01:07]} Ne6 {[%emt 0:01:05]} 17. Nfe2 {[%emt 0:00:28]} b5 {[%emt 0:05:04]} 18. e4 {[%emt 0:03:01]} Nc4 {[%emt 0:03:17]} 19. Bf2 {[%emt 0:00:53] Inhibits Ne3.} Ba6 $1 {[%emt 0:04:30]} 20. Rd1 {[%emt 0:10:04]} (20. Bxc4 $11 bxc4 21. Be3) 20... b4 $17 {[%emt 0:03:42]} 21. axb4 {[%emt 0:03:50]} axb4 {[%emt 0:00:28]} 22. Nb1 {[%emt 0:01:49]} Qb6 {[%emt 0:16:55]} 23. b3 {[%emt 0:09:09]} (23. Rde1 $15) 23... Na3 {[%emt 0:01:04]} 24. Qd2 {[%emt 0:00:13]} Red8 {[%emt 0:02:40]} 25. Bxa6 {[%emt 0:02:57]} Qxa6 {[%emt 0:01:35]} 26. e5 {[%emt 0:01:15]} c5 {[%emt 0:08:22]} 27. dxc5 {[%emt 0:01:13]} d4 {[%emt 0:01:30]} 28. Nxa3 {[%emt 0:04:03]} Qxa3 {[%emt 0:06:39]} (28... bxa3 {keeps more tension.} 29. b4 d3 30. Nc3 Qc4) 29. Qc2 {[%emt 0:05:56]} Bxc5 {[%emt 0:02:27][%cal Od4d3]} 30. Rd3 {[%emt 0:11:02]} Rac8 {[%emt 0:02:36][%cal Oc5d6]} 31. Qb1 $1 {[%emt 0:01:19]} Qa8 {[%emt 0:05:57]} 32. Kh1 {[%emt 0:08:32]} Qd5 $36 {[%emt 0:02:46][%mdl 2048] Black is pushing.} 33. Bh4 {[%emt 0:00:55]} Re8 {[%emt 0:08:55]} (33... g5 $15 34. Bg3 Bb6) 34. f4 $11 {[%emt 0:01:11]} Bf8 {[%emt 0:01:11][%cal Oc8c3]} 35. Bg3 {[%emt 0:01:59]} (35. Rdd1 $11) 35... g6 {[%emt 0:12:22]} (35... Rc3 $1 $17 {[%cal Oe8d8] ...Rd8! would now be deadly.} 36. Nxc3 bxc3) 36. f5 {[%emt 0:02:48]} ({Better is} 36. Bh4 $11) 36... gxf5 $15 {[%emt 0:00:11]} 37. Qd1 {[%emt 0:11:02]} Bg7 {[%emt 0:04:48]} 38. Rff3 {[%emt 0:02:38] [#]} (38. Rxf5 $11 {keeps the balance.} Re7 39. Rf1 (39. Nxd4 Rd7 $17)) 38... Qe4 $1 $17 {[%emt 0:01:20][%cal Oc8c3]} (38... Bxe5 39. Rxf5 Ng5 (39... f6 40. Bxe5 Ng7 41. Rxd4 $16) 40. Rxd4 $18 (40. Nxd4 Rc3 $15) (40. Nxd4 Rc3 $11)) 39. Nxd4 {[%emt 0:03:55] [#]} (39. Rf1 $17) 39... Nxd4 $2 {[%emt 0:00:53]} (39... Red8 $1 $19 {[%cal Rd8d4]} 40. Ne2 Rxd3 (40... Bxe5 41. Bxe5 Qxe5 42. h3 $17) 41. Rxd3 Ra8 (41... Bxe5 42. Bxe5 Qxe5 43. Rd5 $17)) 40. Rxd4 $11 {[%emt 0:00:24] The position is equal.} Qxd4 {[%emt 0:00:51]} 41. Qxd4 {[%emt 0:00:01]} Rc1+ {[%emt 0:00:06]} 42. Qg1 $1 {[%emt 0:00:03]} Rxg1+ {[%emt 0:00:06]} 43. Kxg1 {[%emt 0:00:04]} Bxe5 {[%emt 0:00:39] Weighted Error Value: White=0.28 (precise) /Black=0.22 (precise) .  Missed win:     	---       	Black=1      Mistake:       	White=6     	Black=2      Inaccurate:     	White=4     	Black=4      OK:         	White=8     	Black=12     Best:        	---       	Black=3      Strong:       	White=2     	Black=1} 1/2-1/2

[Event "Charlotte CC Fall GM-ALTO 2024"]
[Site "Charlotte"]
[Date "2024.11.23"]
[Round "3.4"]
[White "Padmini, Rout"]
[Black "Ouellet, Maili-Jade"]
[Result "1/2-1/2"]
[ECO "C54"]
[WhiteElo "2334"]
[BlackElo "2352"]
[Annotator "RC"]
[PlyCount "86"]
[EventDate "2024.11.22"]
[EventType "tourn"]
[EventCountry "USA"]
[SourceTitle "playchess.com"]
[Source "ChessBase"]
[SourceQuality "1"]
[TimeControl "5400+30"]

1. e4 {[%emt 0:00:03]} e5 {[%emt 0:02:34]} 2. Nf3 {[%emt 0:00:44]} Nc6 {[%emt 0:00:05]} 3. Bc4 {[%emt 0:01:38]} Bc5 {[%emt 0:00:06]} 4. O-O {[%emt 0:00:25]} Nf6 {[%emt 0:00:12]} 5. d3 {[%emt 0:00:12]} d6 {[%emt 0:00:09]} 6. c3 {[%emt 0:03:12]} a5 {[%emt 0:00:05]} 7. a4 {[%emt 0:06:20]} O-O {[%emt 0:00:48]} 8. h3 {[%emt 0:02:07]} Be6 {[%emt 0:05:31]} 9. Bxe6 {[%emt 0:15:40]} fxe6 {[%emt 0:00:04]} 10. Be3 {[%emt 0:00:11]} Bxe3 {[%emt 0:10:41]} 11. fxe3 {[%emt 0:00:07]} d5 {[%emt 0:00:23]} 12. Nbd2 {[%emt 0:05:11]} Qd6 {[%emt 0:09:47]} 13. exd5 {[%emt 0:15:17]} exd5 {[%emt 0:01:50]} 14. Nh2 {[%emt 0:05:40]} e4 {[%emt 0:15:05]} 15. d4 {[%emt 0:04:19]} Qg3 {[%emt 0:01:02]} 16. Qe1 {[%emt 0:01:54]} Qg5 {[%emt 0:04:46]} 17. g4 {[%emt 0:03:44]} Rf7 {[%emt 0:14:57]} 18. Kg2 {[%emt 0:09:11]} Qg6 {[%emt 0:03:44]} 19. Qg3 {[%emt 0:03:31]} Raf8 {[%emt 0:01:41]} 20. Rf4 {[%emt 0:01:04]} Ne8 {[%emt 0:27:00]} 21. Raf1 {[%emt 0:00:57]} Nd6 {[%emt 0:00:00]} 22. R1f2 {[%emt 0:02:28]} Qe6 {[%emt 0:00:00]} 23. Nhf1 {[%emt 0:01:49]} Ne7 {[%emt 0:00:00]} 24. Rxf7 {[%emt 0:01:49]} Rxf7 {[%emt 0:00:00]} 25. Rxf7 {[%emt 0:00:18]} Qxf7 {[%emt 0:00:00]} 26. Qf4 {[%emt 0:05:47]} Qe6 {[%emt 0:00:00]} 27. Ng3 {[%emt 0:00:59]} Ng6 {[%emt 0:00:00]} 28. Qf2 {[%emt 0:00:03]} Nh4+ {[%emt 0:00:00]} 29. Kg1 {[%emt 0:03:10]} Qf7 {[%emt 0:00:00]} 30. Qxf7+ {[%emt 0:00:43]} Kxf7 {[%emt 0:00:00]} 31. Kf2 {[%emt 0:00:52]} Ke6 {[%emt 0:00:00]} 32. b3 {[%emt 0:02:04]} b5 {[%emt 0:00:00]} 33. axb5 {[%emt 0:04:43]} Nxb5 {[%emt 0:00:03]} 34. c4 {[%emt 0:00:09]} Nd6 {[%emt 0:01:15]} 35. cxd5+ {[%emt 0:00:35]} Kxd5 {[%emt 0:00:01]} 36. Nh5 {[%emt 0:00:43]} c5 {[%emt 0:01:05]} 37. Nf4+ {[%emt 0:00:42]} Kc6 {[%emt 0:00:01]} 38. Ne2 {[%emt 0:00:10]} cxd4 {[%emt 0:01:41]} 39. exd4 {[%emt 0:00:42]} Kd5 {[%emt 0:00:20]} 40. Nb1 {[%emt 0:00:23]} Nb5 {[%emt 0:00:22]} 41. Ke3 {[%emt 0:00:06]} Ng2+ {[%emt 0:00:26]} 42. Kf2 {[%emt 0:00:13]} Nh4 {[%emt 0:00:16]} 43. Ke3 {[%emt 0:00:12]} Ng2+ {[%emt 0:00:35]} 1/2-1/2

[Event "Charlotte CC Fall GM-ALTO 2024"]
[Site "Charlotte"]
[Date "2024.11.23"]
[Round "3.5"]
[White "Stefanov, Emil"]
[Black "Fernandez, Daniel Howard"]
[Result "0-1"]
[ECO "D94"]
[WhiteElo "2362"]
[BlackElo "2503"]
[Annotator "TA"]
[PlyCount "68"]
[EventDate "2024.11.22"]
[EventType "tourn"]
[EventCountry "USA"]
[SourceTitle "playchess.com"]
[Source "ChessBase"]
[SourceQuality "1"]
[TimeControl "5400+30"]

{[%evp 19,68,14,29,-7,-5,-12,-22,-20,-16,-18,-16,-14,-10,-7,-5,-11,0,0,0,0,0,0,0,-38,-14,-29,17,-75,-50,-52,88,-41,-31,-35,-47,-39,47,-193,-158,-119,-133,-663,-665,-648,-669,-639,-606,-29972,-6054,-6022,-424]} 1. d4 {[%emt 0:00:05]} Nf6 {[%emt 0:09:41]} 2. c4 {[%emt 0:00:08]} g6 {[%emt 0:00:10]} 3. Nc3 {[%emt 0:00:12]} d5 {[%emt 0:00:02]} 4. Nf3 {[%emt 0:00:10]} Bg7 {[%emt 0:00:03]} 5. e3 {[%emt 0:00:11]} O-O {[%emt 0:00:29]} 6. cxd5 {[%emt 0:00:16]} Nxd5 {[%emt 0:00:27]} 7. Bc4 {[%emt 0:00:09]} Nxc3 {[%emt 0:02:18]} 8. bxc3 {[%emt 0:00:09]} b6 {[%emt 0:00:09]} 9. Qe2 {[%emt 0:02:34]} Bb7 {[%emt 0:00:50]} 10. O-O {[%emt 0:00:09]} c5 {[%emt 0:01:22]} 11. Ba3 {[%emt 0:13:09]} Qc7 {[%emt 0:00:25]} 12. Rac1 {[%emt 0:00:13]} Nd7 {[%emt 0:03:18]} 13. Rfd1 {[%emt 0:06:35] The position is equal.} a6 {[%emt 0:03:03]} 14. Bb3 {[%emt 0:06:08]} e6 {[%emt 0:04:26]} 15. c4 {[%emt 0:02:44]} Rfd8 {[%emt 0:02:15]} 16. Bb2 {[%emt 0:05:07]} cxd4 {[%emt 0:08:41]} 17. exd4 {[%emt 0:00:06]} Qf4 {[%emt 0:00:04]} 18. Rc3 {[%emt 0:18:53]} Nf6 {[%emt 0:00:55]} 19. Bc1 {[%emt 0:02:14]} Qf5 {[%emt 0:04:37]} 20. Bc2 {[%emt 0:07:00]} Qh5 {[%emt 0:00:03]} 21. a4 {[%emt 0:05:09] [#]} b5 $1 {[%emt 0:09:50]} 22. cxb5 {[%emt 0:00:15]} (22. axb5 axb5) 22... Nd5 {[%emt 0:00:27]} (22... axb5 $142 23. Qxb5 (23. axb5 Rab8 $11) 23... Nd5) 23. Rb3 {[%emt 0:03:06]} (23. Rc5 $11) 23... axb5 $17 {[%emt 0:00:09]} 24. axb5 {[%emt 0:03:43]} (24. Qxb5 $2 Ba6 25. Qa5 Bc4 $19 (25... Be2 26. Qe1 $17)) 24... Ra2 {[%emt 0:00:36]} (24... Rac8 $15 25. Re1 Nc3) 25. Qd3 {[%emt 0:01:24]} ({Better is} 25. Bxg6 $1 $16 Qxh2+ 26. Nxh2 Rxe2 27. Bb1 Bxd4 28. Ng4) 25... Nb6 {[%emt 0:10:20] ...Bxf3 would now be deadly.} 26. Ra3 {[%emt 0:05:33]} Bxf3 {[%emt 0:02:27]} 27. Rxa2 {[%emt 0:05:14] [#]} Bxg2 {[%emt 0:03:56]} 28. Ra3 $2 {[%emt 0:04:16]} (28. Kxg2 $14 {stays ahead.} Qd5+ (28... Bxd4 $2 29. Qf3 $18) 29. Qf3 Qxa2 30. Bb3) 28... Bb7 {[%emt 0:03:37]} 29. Qg3 {[%emt 0:06:59] [#]} Rc8 $1 $40 {[%emt 0:13:54][%mdl 128] Black goes for the king. Really sharp! Black is more active.} 30. Rc3 {[%emt 0:00:24][%mdl 8192]} (30. Bb3 $17) 30... Rxc3 $19 {[%emt 0:00:17]} 31. Qxc3 {[%emt 0:00:32]} Bf3 $1 {[%emt 0:00:08] ( -> ...Qg4+)} 32. Qc7 {[%emt 0:02:32]} Qg4+ {[%emt 0:00:43]} 33. Kf1 {[%emt 0:00:26][%cal Oc7b6]} Qg2+ {[%emt 0:00:19]} 34. Ke1 {[%emt 0:00:07]} Qg1+ {[%emt 0:00:06] Weighted Error Value: White=0.79/Black=0.17 (very precise) .  Loses game:     	White=2     	---        Mistake:       	White=2     	Black=3      Inaccurate:     	White=1     	---        OK:         	White=4     	Black=5      Best:        	White=1     	Black=2      Strong:       	---       	Black=1} ({Less strong is} 34... Bxd1 35. Bxd1 Qg1+ (35... Bxd4 $2 {too greedy.} 36. Qd8+ Kg7 37. Qxd4+ $18) 36. Ke2 Qg4+ (36... Bxd4 $2 {loses.} 37. Qd8+ Kg7 38. Qxd4+ $18) 37. f3 Qxd4 38. Bb3 $17) 0-1